fUST/lending_fUST_20241213
["ID","MTS","AMOUNT","RATE_DAILY","PERIOD"]
[345188076,1734078648240,-643.44004,0.00027671,7]
[345188079,1734078648250,-643.44004,0.00027671,7]
[345188081,1734078648260,-643.44004,0.00028219,7]
[345188083,1734078648271,-643.44004,0.00028219,7]
[345188084,1734078648282,-643.44004,0.00028219,7]
[345188087,1734078648292,-404.88957477,0.00028493,7]
[345188089,1734078648302,-500.0,0.00028493,7]
[345188091,1734078648313,-500.0,0.00028493,7]
[345188093,1734078648323,-1158.96,0.00028493,7]
[345188095,1734078648332,-500.0,0.00028493,7]
[345188097,1734078648342,-500.0,0.00028493,7]
[345188099,1734078648352,-500.0,0.00028493,7]
[345188101,1734078648362,-607.31,0.00028493,7]
[345188103,1734078648371,-974.96,0.00028493,7]
[345188105,1734078648381,-954.4,0.00028493,7]
[345188107,1734078648391,-500.0,0.00028493,7]
[345188109,1734078648400,-500.0,0.00028493,7]
[345188111,1734078648409,-500.0,0.00028493,7]
[345188113,1734078648419,-500.0,0.00028493,7]
[345188115,1734078648428,-500.0,0.00028493,7]
[345188117,1734078648438,-500.0,0.00028493,7]
[345188119,1734078648448,-500.0,0.00028493,7]
[345188121,1734078648458,-500.0,0.00028493,7]
[345188123,1734078648469,-500.0,0.00028493,7]
[345188125,1734078648479,-789.13,0.00028493,7]
[345188127,1734078648489,-500.0,0.00028493,7]
[345188129,1734078648499,-500.0,0.00028493,7]
[345188131,1734078648510,-500.0,0.00028493,7]
[345188133,1734078648520,-500.0,0.00028493,7]
[345188135,1734078648530,-500.0,0.00028493,7]
[345188137,1734078648540,-672.89,0.00028493,7]
[345188139,1734078648549,-500.0,0.00028493,7]
[345188141,1734078648559,-500.0,0.00028493,7]
[345188144,1734078648570,-500.0,0.00028493,7]
[345188146,1734078648579,-500.0,0.00028493,7]
[345188148,1734078648589,-500.0,0.00028493,7]
[345188150,1734078648599,-1041.67,0.00028493,7]
[345188151,1734078648608,-500.0,0.00028493,7]
[345188153,1734078648618,-441.08753944,0.00028493,7]
[345188156,1734078648631,-393.34246056,0.00028493,7]
[345188158,1734078648640,-601.32,0.00028493,7]
[345188160,1734078648650,-500.0,0.00028493,7]
[345188162,1734078648659,-500.0,0.00028493,7]
[345188164,1734078648669,-500.0,0.00028493,7]
[345188166,1734078648679,-500.0,0.00028493,7]
[345188168,1734078648688,-563.47,0.00028493,7]
[345188170,1734078648698,-686.28,0.00028493,7]
[345188172,1734078648709,-843.84,0.00028493,7]
[345188174,1734078648721,-99.80146371,0.00028493,7]
[345193569,1734079832439,-160.0,0.00023,2]
[345193571,1734079832449,-300.0,0.000263,12]
[345193572,1734079832459,-300.0,0.0002692,2]
[345193574,1734079832468,-300.0,0.0002692,2]
[345193576,1734079832478,-10361.965088,0.00026921,2]
[345193577,1734079832487,-65.37908151,0.0002697,2]
[345193580,1734079832507,-91.35740583,0.0002697,2]
[345193581,1734079832517,-429.599,0.0002707,2]
[345193582,1734079832527,-533.0,0.00027083,2]
[345193583,1734079832536,-298.18859417,0.00027083,2]
[345193602,1734079838308,-2071.81140583,0.00027083,2]
[345193603,1734079838318,-2163.0,0.00027083,2]
[345193604,1734079838327,-5246.39421672,0.00027141,2]
[345193605,1734079838418,-5115.57087128,0.00027141,2]
[345193606,1734079838428,-156.73648733,0.000272,2]
[345193607,1734079838439,-1000.0,0.000273,2]
[345193608,1734079838449,-500.0,0.00027396,2]
[345193609,1734079838459,-183.73369252,0.00027396,2]
[345193610,1734079838473,-500.0,0.00027396,2]
[345193611,1734079838483,-500.0,0.00027396,2]
[345193612,1734079838492,-500.0,0.00027396,2]
[345193613,1734079838502,-491.80630381,0.00027396,2]
[345193614,1734079838511,-414.93418659,0.00027396,2]
[345193615,1734079838521,-500.0,0.00027396,2]
[345193616,1734079838531,-500.0,0.00027396,2]
[345193617,1734079838540,-500.0,0.00027396,2]
[345193618,1734079838551,-500.0,0.00027397,7]
[345193619,1734079838561,-500.0,0.00027397,7]
[345193620,1734079838571,-500.0,0.00027397,7]
[345193621,1734079838580,-500.0,0.00027397,7]
[345193622,1734079838590,-500.0,0.00027397,7]
[345193623,1734079838600,-500.0,0.00027397,7]
[345193624,1734079838610,-500.0,0.00027397,7]
[345193625,1734079838619,-500.0,0.00027397,7]
[345193626,1734079838629,-500.0,0.00027397,7]
[345193627,1734079838639,-500.0,0.00027397,7]
[345193628,1734079838649,-624.8,0.00027397,7]
[345193629,1734079838659,-500.0,0.00027397,7]
[345193630,1734079838669,-500.0,0.00027397,7]
[345193631,1734079838679,-500.0,0.00027397,7]
[345193632,1734079838689,-755.57,0.00027397,7]
[345193633,1734079838699,-500.0,0.00027397,7]
[345193634,1734079838708,-459.12674666,0.00027397,7]
[345193635,1734079838718,-506.45638723,0.00027397,7]
[345193636,1734079838728,-500.0,0.00027397,7]
[345193637,1734079838737,-500.0,0.00027397,7]
[345193638,1734079838747,-662.89,0.00027397,7]
[345193639,1734079838757,-500.0,0.00027397,7]
[345193640,1734079838767,-500.0,0.00027397,7]
[345193641,1734079838777,-500.0,0.00027397,7]
[345193642,1734079838786,-500.0,0.00027397,7]
[345193643,1734079838797,-500.0,0.00027397,7]
[345193644,1734079838807,-500.0,0.00027397,7]
[345193645,1734079838816,-500.0,0.00027397,7]
[345193646,1734079838826,-500.0,0.00027397,7]
[345193647,1734079838836,-519.79684736,0.00027397,7]
[345193648,1734079838846,-500.0,0.00027397,7]
[345193649,1734079838855,-500.0,0.00027397,7]
[345193650,1734079838865,-500.0,0.00027397,7]
[345193651,1734079838874,-500.0,0.00027397,7]
[345193652,1734079838884,-500.0,0.00027397,7]
[345193653,1734079838894,-500.0,0.00027397,7]
[345193654,1734079838903,-500.0,0.00027397,7]
[345193655,1734079838913,-575.28,0.00027397,7]
[345193656,1734079838923,-500.0,0.00027397,7]
[345193657,1734079838932,-450.94304517,0.00027397,7]
[345193658,1734079838941,-500.0,0.00027397,7]
[345193659,1734079838951,-500.0,0.00027397,7]
[345193660,1734079838964,-500.0,0.00027397,7]
[345193661,1734079838973,-500.0,0.00027397,7]
[345193662,1734079838983,-500.0,0.00027397,7]
[345193663,1734079838992,-500.0,0.00027397,7]
[345193664,1734079839003,-500.0,0.00027397,7]
[345193665,1734079839012,-500.0,0.00027397,7]
[345193666,1734079839022,-500.0,0.00027397,7]
[345193667,1734079839033,-500.0,0.00027397,7]
[345193668,1734079839043,-500.0,0.00027397,7]
[345193669,1734079839052,-604.74,0.00027397,7]
[345193670,1734079839062,-500.0,0.00027397,7]
[345193671,1734079839071,-1606.82,0.00027397,7]
[345193672,1734079839081,-500.0,0.00027397,7]
[345193673,1734079839091,-500.0,0.00027397,7]
[345193674,1734079839100,-500.0,0.00027397,7]
[345193675,1734079839110,-836.66,0.00027397,7]
[345193676,1734079839119,-500.0,0.00027397,7]
[345193677,1734079839129,-516.81,0.00027397,7]
[345193678,1734079839138,-500.0,0.00027397,7]
[345193679,1734079839148,-500.0,0.00027397,7]
[345193680,1734079839157,-500.0,0.00027397,7]
[345193681,1734079839167,-500.0,0.00027397,7]
[345193682,1734079839177,-500.0,0.00027397,7]
[345193683,1734079839187,-500.0,0.00027397,7]
[345193684,1734079839196,-500.0,0.00027397,7]
[345193685,1734079839206,-264.41882027,0.00027397,7]
[345193686,1734079839215,-500.0,0.00027397,7]
[345193687,1734079839225,-500.0,0.00027397,7]
[345193688,1734079839235,-500.0,0.00027397,7]
[345193689,1734079839244,-500.0,0.00027397,7]
[345193690,1734079839254,-500.0,0.00027397,7]
[345193691,1734079839263,-500.0,0.00027397,7]
[345193692,1734079839270,-500.0,0.00027397,7]
[345193693,1734079839276,-500.0,0.00027397,7]
[345193694,1734079839283,-500.0,0.00027397,7]
[345193695,1734079839290,-500.0,0.00027397,7]
[345193696,1734079839299,-500.0,0.00027397,7]
[345193697,1734079839306,-500.0,0.00027397,7]
[345193698,1734079839312,-721.19,0.00027397,7]
[345193699,1734079839319,-503.49,0.00027397,7]
[345193700,1734079839326,-500.0,0.00027397,7]
[345193701,1734079839332,-500.0,0.00027397,7]
[345193702,1734079839338,-500.0,0.00027397,7]
[345193703,1734079839345,-500.0,0.00027397,7]
[345193704,1734079839352,-500.0,0.00027397,7]
[345193705,1734079839359,-500.0,0.00027397,7]
[345193706,1734079839368,-262.00839519,0.00027397,7]
[345193707,1734079839383,-237.99160481,0.00027397,7]
[345193708,1734079839393,-500.0,0.00027397,7]
[345193709,1734079839403,-532.7,0.00027397,7]
[345193710,1734079839412,-500.0,0.00027397,7]
[345193711,1734079839421,-500.0,0.00027397,7]
[345193712,1734079839431,-470.28279028,0.00027397,7]
[345193713,1734079839674,366.78072234,0.000255,120]
[345193937,1734079843479,-354.37720972,0.00027397,7]
[345193939,1734079843489,-917.51,0.00027397,7]
[345193941,1734079843499,-500.0,0.00027397,7]
[345193943,1734079843508,-478.96279028,0.00027397,7]
[345197304,1734079894304,160.881513,0.00013973,2]
[345197305,1734080151737,901.532,0.000255,120]
[345197306,1734080187839,3864.77056084,0.000235,30]
[345197307,1734080187861,3135.22943916,0.000235,30]
[345197314,1734080768878,157.894855,0.00013973,2]
[345197945,1734081038524,-300.0,0.00025999,2]
[345197946,1734081038534,-300.0,0.00025999,2]
[345197947,1734081038543,-300.0,0.000263,12]
[345197948,1734081038552,-10361.965088,0.0002653,2]
[345197949,1734081038561,-8104.49853435,0.00026587,2]
[345198421,1734081044172,-2257.46655365,0.00026587,2]
[345198422,1734081044182,-1077.094646,0.00026915,15]
[345198423,1734081044191,-10361.965088,0.00026998,2]
[345198424,1734081044200,-10000.0,0.00027,7]
[345198425,1734081044210,-411.384,0.0002707,2]
[345198426,1734081044219,-1000.0,0.000273,2]
[345198427,1734081044229,-10361.9650883,0.00027308,2]
[345198428,1734081044238,-500.0,0.00027373,2]
[345198429,1734081044247,-379.43713184,0.00027396,2]
[345198430,1734081044257,-13690.62473917,0.00027397,2]
[345198432,1734081044274,-500.0,0.00027397,7]
[345198434,1734081044284,-500.0,0.00027397,7]
[345198436,1734081044293,-500.0,0.00027397,7]
[345198438,1734081044302,-500.0,0.00027397,7]
[345198440,1734081044315,-173.42444223,0.00027397,7]
[345198442,1734081044324,-500.0,0.00027397,7]
[345198444,1734081044334,-500.0,0.00027397,7]
[345198446,1734081044343,-478.83804856,0.00027397,7]
[345198448,1734081044356,-500.0,0.00027397,7]
[345198450,1734081044365,-500.0,0.00027397,7]
[345198452,1734081044375,-500.0,0.00027397,7]
[345198454,1734081044386,-500.0,0.00027397,7]
[345198456,1734081044395,-500.0,0.00027397,7]
[345198458,1734081044405,-500.0,0.00027397,7]
[345198460,1734081044414,-500.0,0.00027397,7]
[345198462,1734081044424,-500.0,0.00027397,7]
[345198464,1734081044433,-500.0,0.00027397,7]
[345198466,1734081044442,-500.0,0.00027397,7]
[345198468,1734081044452,-500.0,0.00027397,7]
[345198470,1734081044464,-500.0,0.00027397,7]
[345198472,1734081044474,-500.0,0.00027397,7]
[345198474,1734081044484,-500.0,0.00027397,7]
[345198476,1734081044494,-500.0,0.00027397,7]
[345198478,1734081044503,-754.69,0.00027397,7]
[345198480,1734081044512,-285.1926518,0.00027397,7]
[345198482,1734081044522,-500.0,0.00027397,2]
[345198484,1734081044532,-500.0,0.00027397,7]
[345198486,1734081044541,-500.0,0.00027397,7]
[345198488,1734081044551,-500.0,0.00027397,7]
[345198490,1734081044560,-500.0,0.00027397,2]
[345198492,1734081044570,-500.0,0.00027397,7]
[345198494,1734081044580,-500.0,0.00027397,7]
[345198496,1734081044589,-830.76,0.00027397,7]
[345198498,1734081044598,-500.0,0.00027397,7]
[345198500,1734081044607,-500.0,0.00027397,7]
[345198502,1734081044616,-500.0,0.00027397,7]
[345198503,1734081044626,-558.18,0.00027397,7]
[345198505,1734081044636,-500.0,0.00027397,7]
[345198507,1734081044645,-500.0,0.00027397,7]
[345198509,1734081044655,-500.0,0.00027397,7]
[345198512,1734081044665,-500.0,0.00027397,7]
[345198514,1734081044675,-500.0,0.00027397,7]
[345198515,1734081044685,-500.0,0.00027397,7]
[345198517,1734081044697,-500.0,0.00027397,7]
[345198519,1734081044707,-500.0,0.00027397,7]
[345198521,1734081044716,-500.0,0.00027397,7]
[345198523,1734081044725,-500.0,0.00027397,7]
[345198524,1734081044735,-500.0,0.00027397,7]
[345198525,1734081044744,-500.0,0.00027397,7]
[345198526,1734081044754,-500.0,0.00027397,7]
[345198527,1734081044770,-500.0,0.00027397,7]
[345198528,1734081044780,-500.0,0.00027397,7]
[345198529,1734081044788,-501.1,0.00027397,7]
[345198530,1734081044798,-500.0,0.00027397,7]
[345198531,1734081044807,-500.0,0.00027397,7]
[345198532,1734081044817,-500.0,0.00027397,7]
[345198533,1734081044827,-579.54,0.00027397,7]
[345198534,1734081044837,-500.0,0.00027397,7]
[345198535,1734081044846,-624.73,0.00027397,7]
[345198536,1734081044856,-500.0,0.00027397,7]
[345198537,1734081044865,-500.0,0.00027397,7]
[345198538,1734081044874,-500.0,0.00027397,7]
[345198539,1734081044883,-158.58867045,0.00027397,7]
[345198540,1734081044896,-305.99212566,0.00027397,7]
[345198541,1734081044908,-35.41920389,0.00027397,7]
[345198542,1734081044917,-801.79,0.00027397,7]
[345198543,1734081044927,-500.0,0.00027397,7]
[345198544,1734081044937,-500.0,0.00027397,7]
[345198545,1734081044945,-277.36325687,0.00027397,7]
[345200147,1734081084242,10000.0,0.00020222,2]
[345200150,1734081588919,160.0,0.000255,120]
[345200152,1734081721624,158.99834,0.00013973,2]
[345200158,1734082120737,32270.23688472,0.0001999,2]
[345200182,1734082232846,-9940.790235,0.00026215,2]
[345200184,1734082232856,-197.333333,0.00026297,2]
[345200186,1734082232865,-315.14367787,0.00027025,2]
[345200188,1734082232875,-432.019,0.0002707,2]
[345200190,1734082232884,-150.0,0.00027183,2]
[345200192,1734082232894,-300.0,0.0002723,2]
[345200194,1734082232903,-300.0,0.0002723,2]
[345200196,1734082232912,-758.62040083,0.00027297,2]
[345200197,1734082232921,-1000.0,0.000273,2]
[345200198,1734082232931,-7005.5584015,0.00027374,2]
[345200200,1734082232940,-500.0,0.00027396,2]
[345200202,1734082232949,-394.87816966,0.00027396,2]
[345200204,1734082232959,-500.0,0.00027396,2]
[345200206,1734082232969,-500.0,0.00027396,2]
[345200207,1734082232978,-500.0,0.00027396,2]
[345200208,1734082232988,-500.0,0.00027396,2]
[345200209,1734082232998,-500.0,0.00027396,2]
[345200210,1734082233007,-500.0,0.00027396,2]
[345200211,1734082233017,-500.0,0.00027396,2]
[345200212,1734082233026,-500.0,0.00027396,2]
[345200213,1734082233035,-500.0,0.00027396,2]
[345200214,1734082233045,-500.0,0.00027396,2]
[345200215,1734082233055,-500.0,0.00027396,2]
[345200216,1734082233068,-250.0,0.00027396,2]
[345200218,1734082233078,-247.03483274,0.00027396,2]
[345200220,1734082233088,-200.0,0.00027396,2]
[345200222,1734082233097,-194.11498141,0.00027396,2]
[345200224,1734082233106,-10677.18787908,0.00027397,2]
[345200226,1734082233122,-4392.74159527,0.00027397,2]
[345200446,1734082238810,-1023.12444228,0.00027397,2]
[345200447,1734082238828,-500.0,0.00027397,7]
[345200448,1734082238838,-500.0,0.00027397,7]
[345200449,1734082238848,-500.0,0.00027397,7]
[345200450,1734082238858,-518.63068212,0.00027397,7]
[345200451,1734082238868,-500.0,0.00027397,7]
[345200452,1734082238877,-500.0,0.00027397,7]
[345200453,1734082238887,-500.0,0.00027397,7]
[345200454,1734082238896,-500.0,0.00027397,7]
[345200455,1734082238906,-500.0,0.00027397,7]
[345200456,1734082238915,-500.0,0.00027397,7]
[345200457,1734082238924,-500.0,0.00027397,7]
[345200458,1734082238933,-620.15,0.00027397,7]
[345200459,1734082238943,-500.0,0.00027397,7]
[345200460,1734082238952,-507.73779052,0.00027397,7]
[345200461,1734082238962,-500.0,0.00027397,7]
[345200462,1734082238971,-500.0,0.00027397,7]
[345200463,1734082238980,-626.88,0.00027397,7]
[345200464,1734082238990,-500.0,0.00027397,7]
[345200465,1734082238999,-500.0,0.00027397,7]
[345200466,1734082239009,-500.0,0.00027397,7]
[345200467,1734082239018,-500.0,0.00027397,7]
[345200468,1734082239027,-500.0,0.00027397,7]
[345200469,1734082239037,-529.86824715,0.00027397,7]
[345200470,1734082239047,-638.89123452,0.00027397,30]
[345200471,1734082239056,-500.0,0.00027397,7]
[345200472,1734082239071,-500.0,0.00027397,7]
[345200473,1734082239080,-500.0,0.00027397,7]
[345200474,1734082239089,-500.0,0.00027397,7]
[345200475,1734082239099,-500.0,0.00027397,7]
[345200476,1734082239108,-500.0,0.00027397,7]
[345200477,1734082239118,-500.0,0.00027397,7]
[345200478,1734082239127,-500.0,0.00027397,7]
[345200479,1734082239137,-500.0,0.00027397,7]
[345200480,1734082239146,-500.0,0.00027397,7]
[345200481,1734082239155,-500.0,0.00027397,7]
[345200482,1734082239165,-500.0,0.00027397,7]
[345200483,1734082239175,-500.0,0.00027397,7]
[345200484,1734082239185,-500.0,0.00027397,7]
[345200485,1734082239194,-500.0,0.00027397,7]
[345200486,1734082239205,-500.0,0.00027397,7]
[345200487,1734082239215,-500.0,0.00027397,7]
[345200488,1734082239224,-500.0,0.00027397,7]
[345200489,1734082239233,-500.0,0.00027397,7]
[345200490,1734082239243,-500.0,0.00027397,7]
[345200491,1734082239252,-500.0,0.00027397,7]
[345200492,1734082239261,-1539.87,0.00027397,7]
[345200493,1734082239271,-500.0,0.00027397,7]
[345200494,1734082239280,-724.08,0.00027397,7]
[345200495,1734082239289,-500.0,0.00027397,7]
[345200496,1734082239298,-500.0,0.00027397,7]
[345200497,1734082239307,-500.0,0.00027397,7]
[345200498,1734082239320,-500.0,0.00027397,7]
[345200499,1734082239330,-500.0,0.00027397,7]
[345200500,1734082239339,-500.0,0.00027397,7]
[345200501,1734082239348,-500.0,0.00027397,7]
[345200502,1734082239358,-500.0,0.00027397,7]
[345200503,1734082239367,-500.0,0.00027397,7]
[345200504,1734082239377,-500.0,0.00027397,7]
[345200505,1734082239386,-555.39,0.00027397,7]
[345200506,1734082239395,-500.0,0.00027397,7]
[345200507,1734082239404,-630.5589938,0.00027397,7]
[345200508,1734082239413,-500.0,0.00027397,7]
[345200509,1734082239423,-500.0,0.00027397,7]
[345200510,1734082239432,-500.0,0.00027397,7]
[345200511,1734082239441,-500.0,0.00027397,7]
[345200512,1734082239452,-164.0577087,0.00027397,7]
[345200513,1734082239461,-598.76,0.00027397,7]
[345200514,1734082239471,-768.39,0.00027397,7]
[345200515,1734082239481,-500.0,0.00027397,7]
[345200516,1734082239491,-500.0,0.00027397,7]
[345200517,1734082239500,-500.0,0.00027397,7]
[345200518,1734082239509,-500.0,0.00027397,7]
[345200519,1734082239518,-500.0,0.00027397,7]
[345200520,1734082239528,-500.0,0.00027397,7]
[345200521,1734082239545,-500.0,0.00027397,7]
[345200522,1734082239554,-691.14,0.00027397,7]
[345200523,1734082239563,-635.27,0.00027397,7]
[345200524,1734082239578,-500.0,0.00027397,7]
[345200525,1734082239587,-500.0,0.00027397,7]
[345200526,1734082239597,-500.0,0.00027397,7]
[345200527,1734082239606,-500.0,0.00027397,7]
[345200528,1734082239615,-500.0,0.00027397,7]
[345200529,1734082239624,-500.0,0.00027397,7]
[345200530,1734082239633,-500.0,0.00027397,7]
[345200531,1734082239643,-500.0,0.00027397,7]
[345200532,1734082239652,-500.0,0.00027397,7]
[345200533,1734082239661,-500.0,0.00027397,7]
[345200534,1734082239671,-500.0,0.00027397,7]
[345200535,1734082239680,-500.0,0.00027397,7]
[345200536,1734082239690,-500.0,0.00027397,7]
[345200537,1734082239699,-879.28,0.00027397,7]
[345200538,1734082239709,-500.0,0.00027397,7]
[345200539,1734082239718,-500.0,0.00027397,7]
[345200540,1734082239729,-500.0,0.00027397,7]
[345200541,1734082239738,-500.0,0.00027397,7]
[345200542,1734082239747,-510.51,0.00027397,7]
[345200543,1734082239757,-751.89,0.00027397,7]
[345200544,1734082239767,-500.0,0.00027397,7]
[345200545,1734082239780,-500.0,0.00027397,7]
[345200546,1734082239789,-790.3,0.00027397,7]
[345200547,1734082239799,-340.59295661,0.00027397,7]
[345200548,1734082239808,-500.0,0.00027397,7]
[345200549,1734082239824,-543.3,0.00027397,7]
[345200550,1734082239834,-652.12,0.00027397,7]
[345200551,1734082239843,-747.52,0.00027397,7]
[345200552,1734082239854,-500.0,0.00027397,7]
[345200553,1734082239863,-500.0,0.00027397,7]
[345200554,1734082239873,-500.0,0.00027397,7]
[345200555,1734082239884,-500.0,0.00027397,7]
[345200556,1734082239893,-500.0,0.00027397,7]
[345200557,1734082239902,-804.38,0.00027397,7]
[345200558,1734082239911,-500.0,0.00027397,7]
[345200559,1734082239920,-500.0,0.00027397,7]
[345200560,1734082239930,-834.25,0.00027397,7]
[345200561,1734082239939,-500.0,0.00027397,7]
[345200562,1734082239948,-500.0,0.00027397,7]
[345200563,1734082239957,-660.59,0.00027397,7]
[345200564,1734082239967,-545.94,0.00027397,7]
[345200565,1734082239976,-500.0,0.00027397,7]
[345200566,1734082239986,-551.31,0.00027397,7]
[345200567,1734082239995,-500.0,0.00027397,7]
[345200568,1734082240004,-570.37,0.00027397,7]
[345200569,1734082240013,-526.20653329,0.00027397,7]
[345200570,1734082240023,-500.0,0.00027397,7]
[345200571,1734082240032,-566.27010293,0.00027397,7]
[345200572,1734082240042,-500.0,0.00027397,7]
[345200573,1734082240053,-500.0,0.00027397,7]
[345200574,1734082240062,-500.0,0.00027397,7]
[345200575,1734082240078,-2273.69,0.00027397,7]
[345200576,1734082240088,-500.0,0.00027397,7]
[345200577,1734082240097,-668.04,0.00027397,7]
[345200578,1734082240105,-500.0,0.00027397,7]
[345200579,1734082240115,-716.5,0.00027397,7]
[345200580,1734082240124,-500.0,0.00027397,7]
[345200581,1734082240134,-500.0,0.00027397,7]
[345200582,1734082240143,-504.99,0.00027397,7]
[345200584,1734082240152,-500.0,0.00027397,7]
[345200586,1734082240162,-684.66,0.00027397,7]
[345200587,1734082240171,-500.0,0.00027397,7]
[345200589,1734082240180,-500.0,0.00027397,7]
[345200590,1734082240189,-500.0,0.00027397,7]
[345200591,1734082240198,-4482.43,0.00027397,7]
[345200592,1734082240208,-500.0,0.00027397,7]
[345200593,1734082240218,-500.0,0.00027397,7]
[345200594,1734082240228,-672.01,0.00027397,7]
[345200595,1734082240238,-603.71480231,0.00027397,7]
[345200596,1734082240247,-185.82186726,0.00027397,7]
[345200597,1734082240256,-500.0,0.00027397,7]
[345200598,1734082240265,-500.0,0.00027397,7]
[345200599,1734082240275,-500.0,0.00027397,7]
[345200600,1734082240285,-500.0,0.00027397,7]
[345200601,1734082240294,-500.0,0.00027397,7]
[345200602,1734082240304,-2088.95,0.00027397,7]
[345200603,1734082240313,-500.0,0.00027397,7]
[345200604,1734082240328,-652.69,0.00027397,7]
[345200605,1734082240337,-689.4,0.00027397,7]
[345200606,1734082240347,-559.00714257,0.00027397,7]
[345200607,1734082240355,-500.0,0.00027397,7]
[345200608,1734082240365,-723.24,0.00027397,7]
[345200609,1734082240373,-540.13856011,0.00027397,7]
[345200610,1734082240383,-500.0,0.00027397,7]
[345200611,1734082240392,-709.24,0.00027397,7]
[345200612,1734082240401,-604.48,0.00027397,7]
[345200614,1734082240410,-500.0,0.00027397,7]
[345200616,1734082240419,-857.6,0.00027397,7]
[345200617,1734082240429,-500.0,0.00027397,7]
[345200618,1734082240438,-500.0,0.00027397,7]
[345200619,1734082240448,-437.13408974,0.00027397,7]
[345200620,1734082240458,-500.0,0.00027397,7]
[345200621,1734082240467,-500.0,0.00027397,7]
[345200622,1734082240476,-1270.4,0.00027397,7]
[345200623,1734082240485,-500.0,0.00027397,2]
[345200624,1734082240495,-500.0,0.00027397,7]
[345200625,1734082240504,-500.0,0.00027397,7]
[345200626,1734082240513,-500.0,0.00027397,7]
[345200627,1734082240522,-500.0,0.00027397,7]
[345200629,1734082240533,-500.0,0.00027397,7]
[345200630,1734082240542,-500.0,0.00027397,7]
[345200631,1734082240551,-500.0,0.00027397,7]
[345200632,1734082240561,-500.0,0.00027397,7]
[345200633,1734082240579,-500.0,0.00027397,7]
[345200635,1734082240590,-649.27,0.00027397,7]
[345200636,1734082240599,-500.0,0.00027397,7]
[345200637,1734082240608,-5993.81,0.00027397,7]
[345200638,1734082240618,-500.0,0.00027397,7]
[345200639,1734082240628,-500.0,0.00027397,7]
[345200640,1734082240637,-500.0,0.00027397,7]
[345200641,1734082240648,-500.0,0.00027397,7]
[345200643,1734082240657,-557.29650381,0.00027397,7]
[345200644,1734082240670,-500.0,0.00027397,7]
[345200645,1734082240686,-500.0,0.00027397,7]
[345200646,1734082240695,-500.0,0.00027397,7]
[345200647,1734082240704,-500.0,0.00027397,7]
[345200648,1734082240714,-500.0,0.00027397,7]
[345200649,1734082240723,-569.03,0.00027397,7]
[345200650,1734082240733,-1111.09,0.00027397,7]
[345200651,1734082240743,-658.67,0.00027397,7]
[345200652,1734082240752,-154.48324215,0.00027397,7]
[345200653,1734082240761,-1000.79,0.00027397,7]
[345200654,1734082240770,-4614.35,0.00027397,7]
[345200655,1734082240786,-300.03241596,0.00027397,7]
[345200656,1734082240796,-557.36,0.00027397,7]